Cogmind - Beta 14 @@@ ROGUE MODE // 2025.03.04 @ 17:37:25 Player: DietSnapple Result: Destroyed by S-10 Pest with Light Assault Rifle Performance ------------- Evolutions (1) 500 Regions Visited (3) 600 Robots Destroyed (26) 130 Value Destroyed (514) 514 Prototype IDs (0) 0 Alien Tech Used (0) 0 Bonus (0) 0 TOTAL SCORE: 1744 Bonus ------- None Cogmind --------- Core Integrity 0/400 Matter 139/300 Energy 330/425 System Corruption 0% Temperature Cool (0) Movement Treading (160) Location -9/Materials Parts ------- > --- POWER (1) -------- Light Ion Engine > --- PROPULSION (3) --- Light Treads Light Treads > --- UTILITY (3) ------ Medium Storage Unit Medium Battery Medium Battery > --- WEAPON (2) ------- Light Assault Rifle > --- INVENTORY (10) --- Structural Scanner Peak State ------------ > --- POWER ------------ Light Nuclear Core > --- PROPULSION ------- Light Treads Light Treads > --- UTILITY ---------- Medium Storage Unit Terrain Scanner > --- WEAPON ----------- Small Laser Particle Gun > --- INVENTORY -------- Light Ion Engine Light Treads Light Treads Light Treads Heat Sink Medium Battery Medium Battery Tractor Beam Medium Laser Grenade Launcher [Rating: 11] Favorites ----------- Power Light Nuclear Core Engine Ion Engine Power Core Light Nuclear Core Propulsion Light Treads Treads Light Treads Leg Aluminum Leg Utility Medium Storage Unit Device Terrain Scanner Storage Medium Storage Unit Protection Core Shielding Weapon Particle Gun Energy Gun Particle Gun Ballistic Gun Light Assault Rifle Launcher Grenade Launcher Special Weapon Mining Laser Build | -11 -10 -10 -9 ------- Run | Yrd Mat Min Mat Slots Evolved 2 | . . . 2 Power . | . . . . Propulsion 1 | . . . 1 Utility 1 | . . . 1 Weapon . | . . . . Parts Attached 34 | 7 15 2 10 Power 5 | 1 2 1 1 Engine 3 | 1 . 1 1 Core 2 | . 2 . . Reactor . | . . . . Propulsion 12 | 2 7 . 3 Treads 10 | 2 5 . 3 Leg 2 | . 2 . . Wheel . | . . . . Hover . | . . . . Flight . | . . . . Utility 8 | 2 3 . 3 Device 3 | 1 2 . . Storage 4 | 1 1 . 2 Processor . | . . . . Hackware . | . . . . Protection 1 | . . . 1 Artifact . | . . . . Weapon 9 | 2 3 1 3 Energy Gun 3 | 1 2 . . Energy Cannon . | . . . . Ballistic Gun 2 | 1 . . 1 Ballistic Cannon . | . . . . Launcher 3 | . 1 1 1 Special Weapon 1 | . . . 1 Impact Weapon . | . . . . Slashing Weapon . | . . . . Piercing Weapon . | . . . . Special Melee Weapon . | . . . . Unidentified Prototypes . | . . . . Parts Lost 12 | . 2 1 9 Power 1 | . . . 1 Propulsion 3 | . . . 3 Utility 3 | . 1 . 2 Weapon 5 | . 1 1 3 Highest Loss Streak 6 | . 1 1 6 To Critical Strikes . | . . . . Average Slot Usage (%) 93 | . 95 97 74 Engine 6 | . 3 12 9 Core 6 | . 10 1 . Treads 23 | . 23 28 16 Leg 2 | . 3 . . Device 11 | . 11 14 10 Storage 13 | . 14 14 11 Protection 1 | . . . 10 Energy Gun 12 | . 16 11 . Ballistic Gun 4 | . 8 . . Launcher 6 | . 2 14 8 Special Weapon 1 | . . . 8 Peak Build Rating 11 | 7 11 11 10 Average Rating 8 | 5 9 9 6 On Entrance 6 | . 7 11 8 Naked Turns . | . . . . Heaviest Build 23 | 12 22 23 22 Greatest Support 60 | 40 40 40 60 Greatest Overweight (x) 4 | . 4 . 3 Average Overweight (x) . | . . . . Largest Inventory Capacity 10 | 8 10 10 10 Average Capacity 9 | 7 9 10 10 Most Carried 10 | 5 10 10 9 Average Carried 7 | 2 7 9 6 Final Capacity 10 | 8 10 10 10 Final Carried 10 | 5 10 10 1 Class Distribution -------------------- 100% | Mutant Dominant Class ---------------- Mutant | -10/Materials Mutant | -10/Mines Mutant | -9/Materials Resources | -11 -10 -10 -9 ----------- Run | Yrd Mat Min Mat Matter Collected 526 | 266 99 118 43 Remotely . | . . . . Salvage Created 566 | 154 373 15 24 Parts 48 | 8 32 3 5 Haulers Intercepted . | . . . . Recyclers Shooed 1 | . . 1 . Parts Field Recycled . | . . . . Retrieved Matter . | . . . . Parts Self-Destructed . | . . . . Prevented . | . . . . Kills | -11 -10 -10 -9 ------- Run | Yrd Mat Min Mat Combat Hostiles Destroyed 22 | . 13 5 4 Guns 12 | . 12 . . AOE 10 | . 1 5 4 Classes Destroyed 8 | 3 2 2 1 Worker 2 | 1 1 . . Tunneler 2 | 2 . . . Recycler 1 | 1 . . . Swarmer 12 | . 6 3 3 Grunt 7 | . 7 . . Sentry 1 | . . . 1 Demolisher 1 | . . 1 . Assembled 1 | . . 1 . Best Kill Streak 4 | 3 3 3 4 Combat Bots Only 4 | . 3 3 4 Max Kills in Single Turn 3 | 1 2 2 3 Gunslinging . | . . . . Exploded 3 | . 1 2 3 Melee . | . . . . Uniques/NPCs Destroyed . | . . . . Combat | -11 -10 -10 -9 -------- Run | Yrd Mat Min Mat Hostile Shots Fired 227 | . 86 31 110 Missed 48 | . 18 6 24 Damage Taken 2243 | . 693 506 1044 Core 600 | . 80 119 401 Absorbed by Shields . | . . . . Redirected to Shielding 51 | . . . 51 Core Remaining (%) 60 | 100 . 20 . Volleys Fired 66 | 9 38 13 6 Largest 2 | 2 2 2 1 Hottest 105 | 70 105 98 30 Shots Fired 123 | 18 74 25 6 Gun 103 | 18 71 12 2 Cannon . | . . . . Launcher 20 | . 3 13 4 Special . | . . . . Kinetic 40 | 9 29 . 2 Thermal 63 | 9 42 12 . Explosive 20 | . 3 13 4 Electromagnetic . | . . . . Robot Hit Streak 7 | 3 7 . 5 Robot Miss Streak 3 | 1 3 . 1 Penetration Max . | . . . . Secondary Targets 1 | . 1 . . Max Gunslinging Chain 1 | . 1 . . Shots Hit Robots 57 | 10 42 . 5 Core Hits 47 | 5 24 12 6 Critical Kills . | . . . . Critical Parts Destroyed . | . . . . Critical Strikes 4 | 2 2 . . Burn 4 | 2 2 . . Melee Attacks . | . . . . Impact . | . . . . Slashing . | . . . . Piercing . | . . . . Sneak Attacks . | . . . . Combat Hostiles . | . . . . Follow-up Attacks . | . . . . Damage Inflicted 1332 | 110 612 345 265 Guns 617 | 110 459 31 17 Cannons . | . . . . Explosions 697 | . 153 310 234 Melee . | . . . . Ramming 18 | . . 4 14 Kinetic 177 | 23 137 . 17 Thermal 440 | 87 322 31 . Explosive 697 | . 153 310 234 Electromagnetic . | . . . . Impact . | . . . . Slashing . | . . . . Piercing . | . . . . Highest Corruption . | . . . . Average Corruption . | . . . . Corruption Purged . | . . . . Corruption Blocked . | . . . . Overload Shots . | . . . . Overflow Damage . | . . . . Projectiles . | . . . . Explosions . | . . . . Melee . | . . . . Knockbacks . | . . . . Impact . | . . . . Kinetic . | . . . . Secondary . | . . . . Self-Inflicted Damage 43 | . 22 21 . Shots 2 | . 1 1 . Rammed 13 | . . 1 12 Targets Rammed 13 | . . 1 12 Kicked . | . . . . Crushed . | . . . . Highest Temperature 169 | 50 169 142 1 Average Temperature 53 | 22 54 70 1 Received Heat Transfer 303 | . 219 . 84 Siege Activations . | . . . . Robots Corrupted . | . . . . Combat Hostiles . | . . . . Parts Fried . | . . . . Impact Corruptions . | . . . . Robots Melted . | . . . . Combat Hostiles . | . . . . Parts Melted 2 | 1 1 . . Heat Transferred 1530 | 407 1049 74 . Parts Sabotaged . | . . . . Parts Stolen . | . . . . Parts Stripped . | . . . . Power Chain Reactions . | . . . . Alert | -11 -10 -10 -9 ------- Run | Yrd Mat Min Mat Peak Influence 183 | 20 183 136 129 Initial 40 | . 13 40 14 Average 62 | 4 79 45 81 Maximum Alert Level . | . . . . Low Security (%) 100 | 100 100 100 100 Level 1 . | . . . . Level 2 . | . . . . Level 3 . | . . . . Level 4 . | . . . . Level 5 . | . . . . High Security . | . . . . Max Security . | . . . . Squads Dispatched 1 | . 1 . . Investigation . | . . . . Extermination . | . . . . Reinforcement 1 | . 1 . . Assault . | . . . . Garrison . | . . . . Intercept . | . . . . Searches Triggered . | . . . . Construction Impeded . | . . . . Haulers Reinforced . | . . . . Active Scanning Responses . | . . . . Cargo Convoy Interrupts . | . . . . Stealth | -11 -10 -10 -9 --------- Run | Yrd Mat Min Mat Distress Signals 2 | . 1 . 1 Communications Jammed . | . . . . Distress Signals . | . . . . Times Spotted 44 | . 22 9 13 Peak Tracking Total 6 | . 3 4 6 Tactical Retreats 3 | . 2 . 1 Traps | -11 -10 -10 -9 ------- Run | Yrd Mat Min Mat Traps Triggered 3 | . 3 . . Indirectly . | . . . . Trap Hack Attempts . | . . . . Triggered . | . . . . Disarmed . | . . . . Reprogrammed . | . . . . Reused . | . . . . Traps Extracted . | . . . . Installed . | . . . . Triggered . | . . . . Machines | -11 -10 -10 -9 ---------- Run | Yrd Mat Min Mat Machines Disabled 1 | . 1 . . Max in Single Turn 1 | . 1 . . Machines Repaired . | . . . . Machines Dismantled . | . . . . Machines Sabotaged . | . . . . Overloaded Fab Kills . | . . . . Hacking | -11 -10 -10 -9 --------- Run | Yrd Mat Min Mat Machines Accessed 2 | . 1 . 1 Terminals 2 | . 1 . 1 Fabricators . | . . . . Repair Stations . | . . . . Recycling Units . | . . . . Scanalyzers . | . . . . Garrison Access . | . . . . Total Hacks 2 | . 1 . 1 Successful 2 | . 1 . 1 Failed . | . . . . Catastrophic . | . . . . Database Lockouts . | . . . . Manual 2 | . 1 . 1 Terminals 2 | . 1 . 1 Fabricators . | . . . . Repair Stations . | . . . . Recycling Units . | . . . . Scanalyzers . | . . . . Garrison Access . | . . . . Terminal Hacks 2 | . 1 . 1 Hauler Manifests 2 | . 1 . 1 Fabricator Hacks . | . . . . Repair Station Hacks . | . . . . Recycling Unit Hacks . | . . . . Scanalyzer . | . . . . Garrison Access Hacks . | . . . . Unauthorized Hacks . | . . . . Terminals . | . . . . Fabricators . | . . . . Repair Stations . | . . . . Recycling Units . | . . . . Scanalyzers . | . . . . Garrison Access . | . . . . Data Cores Recovered . | . . . . Used . | . . . . Hacking Detections . | . . . . Full Trace Events . | . . . . Feedback Events . | . . . . Feedback Blocked . | . . . . Robot Schematics Acquired . | . . . . Robots Built . | . . . . Authchips . | . . . . Time . | . . . . Total Robot Build Rating . | . . . . Part Schematics Acquired . | . . . . Parts Built . | . . . . Authchips . | . . . . Time . | . . . . Total Part Build Rating . | . . . . Parts Repaired . | . . . . Time . | . . . . Parts Recycled . | . . . . Recycled Matter . | . . . . Retrieved Matter . | . . . . Retrieved Components . | . . . . Parts Scanalyzed . | . . . . Part Schematics Acquired . | . . . . Parts Damaged . | . . . . Bothacking | -11 -10 -10 -9 ------------ Run | Yrd Mat Min Mat Used RIF Installer . | . . . . Robots Hacked . | . . . . Non-combat . | . . . . Combat . | . . . . Robot Hacks Applied . | . . . . Relay Couplers Released . | . . . . Fabnet Peak Effective % . | . . . . Robots Rewired . | . . . . Allies Hacked . | . . . . Hacks Repelled . | . . . . Allies | -11 -10 -10 -9 -------- Run | Yrd Mat Min Mat Total Allies 1 | . . 1 . Largest Group 1 | . . 1 . Highest-Rated Group 31 | . . 31 . Highest-Rated Ally 31 | . . 31 . Total Orders . | . . . . Ally Attacks . | . . . . Total Damage . | . . . . Kills . | . . . . Allies Corrupted . | . . . . Allies Melted . | . . . . Intel | -11 -10 -10 -9 ------- Run | Yrd Mat Min Mat Robot Analysis Total . | . . . . Derelict Logs Recovered 2 | . . 2 . Drone Launches . | . . . . Drone Recoveries . | . . . . Exploration | -11 -10 -10 -9 ------------- Run | Yrd Mat Min Mat Turns Passed 2347 | 220 1171 675 281 Spaces Moved 1298 | 115 669 394 120 Core 26 | 4 12 . 10 Treads 1146 | 111 531 394 110 Legs 126 | . 126 . . Wheels . | . . . . Hover . | . . . . Flight . | . . . . Fastest Speed 50 | 50 120 160 160 Average Speed 159 | 156 152 160 199 Slowest Speed 250 | 160 250 160 240 Overloaded Moves . | . . . . Propulsion Burnouts . | . . . . Robots Hopped . | . . . . Cave-ins Triggered . | . . . . Exploration Rate (%) 38 | 6 70 68 9 Regions Visited 3 Branch Regions 1 Pre-discovered Areas 1 | . . 1 . Known Exits Taken . | . . . . Unknown Exits Taken 3 | 1 1 1 . Scrap Searched 1 | . . 1 . Spaces Dug 8 | . . 8 . Terrain Destroyed 113 | . 5 85 23 Melee . | . . . . Projectile . | . . . . AOE 113 | . 5 85 23 Terrain Rammed . | . . . . Walls Destroyed . | . . . . Machines Disabled . | . . . . Actions | -11 -10 -10 -9 --------- Run | Yrd Mat Min Mat Total 1449 | 136 752 413 148 Wait 7 | . 7 . . Move 1295 | 114 668 393 120 Hop . | . . . . Pick Up 23 | 6 15 2 . Fast Attach 11 | 6 4 . 1 Attach 17 | 1 7 . 9 Detach . | . . . . Swap 6 | . 4 2 . Drop 11 | . 9 2 . Fire 66 | 9 38 13 6 Melee . | . . . . Ram . | . . . . Kick . | . . . . Crush 13 | . . 1 12 Escape Stasis . | . . . . Rewire . | . . . . Trap . | . . . . Miscellaneous . | . . . . Route ------- -11/Scrapyard -10/Materials (discovered 4 exits: *Mat / [*Min x2] / [*Sub]) -10/Mines -9/Materials (discovered 1 exit: Sto) History --------- Turn | Location | Event 7 | -11/Scrapyard | Discovered new exit (range 16) 221 | -11/Scrapyard | Entered Materials 300 | -10/Materials | Build established: Mutant 455 | -10/Materials | Discovered new exit (range 6) 725 | -10/Materials | Discovered new exit (range 9) 1300 | -10/Materials | Discovered new exit (range 7) 1314 | -10/Materials | Discovered new exit (range 16) 1392 | -10/Materials | Entered Mines 1395 | -10/Mines | Received a Mining Laser from a helpful Derelict 1460 | -10/Mines | Found DCF Scrap (14 items) 1468 | -10/Mines | Learned location of Zion (-7) 1835 | -10/Mines | Received a Rocket Launcher from a helpful Derelict 1898 | -10/Mines | Assembled infested the area 1939 | -10/Mines | Core integrity fell below 50% 2043 | -10/Mines | Discovered new exit (range 10) 2067 | -10/Mines | Entered Materials 2067 | -9/Materials | Evolved 2 slots: Propulsion x1, Utility x1 2068 | -9/Materials | Identified exit to Storage 2178 | -9/Materials | Lost 3 parts (2n1w) 2332 | -9/Materials | Core integrity fell below 50% 2341 | -9/Materials | Core integrity fell below 20% 2348 | -9/Materials | Destroyed by S-10 Pest with Light Assault Rifle Last Messages --------------- 02215_ K-01 Serf collects debris. 02215_ U-05 Engineer lays Concrete. 02220_ K-01 Serf collects debris. 02221_ U-05 Engineer builds a Wall. 02225_ U-05 Engineer lays Concrete. 02226_ K-01 Serf collects debris. 02230_ K-01 Serf cleans the Terminal. 02231_ U-05 Engineer lays Concrete. 02236_ K-01 Serf cleans the Terminal. 02244_ Acquired 43 matter. 02246_ K-01 Serf cleans the Atomic Centrifuge. 02287_ Mining Laser destroyed. 02292_ Grenade Launcher destroyed. 02294_ Ion Engine destroyed. 02317_ Lgt. Treads destroyed. 02332_ S-10 Pest destroyed. 02333_ Terrain Scanner destroyed. 02335_ Core Shielding destroyed. 02338_ Acquired Lgt. Assault Rifle. 02340_ R-06 Scavenger collects Flight Unit. Map ----- +----------------------------------------------------+ | ???????????????????????????????????????????? | | ???????????????????????????????????????????? | | ??????????????? ?????????????????????????? | | ??????????????? #?????????????????????????? | | ??????????????? #?????????????????????????? | | ??????????????? #?????????????????????????? | | ?????????????? #?????????????????????????? | | ?????????????? # ????????????????????????? | | ?????????????? # ????????????????????????? | | ????????#????? #?????????????????????????? | | ?????????????? +?????????????????????????? | | ?????????????? #?????????????????????????? | | ?????????????? #?????????????????????????? | | ?????????##### ####### ???????????????? | | ?????????# ??????????????? | | ?????????# ??????????????? | | #????????# ??????????????? | | ???????#?####/##########???????????????????? | | ??????????#?# ##??????????????????????? | | ???????#??#?# #??#?????#??????????????? | | ???#????????# """ ##??????#??#????????????? | | ???????????## """ #???????????????????????? | | ?????????##?# """ ###???#??#??????????????? | | ???????????## #???#????#??????????????? | | ???????????# ##+#############??????????????? | | ??????? ####### # @ #??????????????? | | ????????# # sl """ ##?#???????????? | | ????? ??# a/ s """"" ###????????????? | | ?? ?????+ ### ## sr """"" #??????????????? | | ???? ?? # # # ## """"" #??????????????? | | ???? ???# # # ## "T" """ #??????????????? | | ???? ? ?#^ ### ## ##???#?????????? | | ? ??????# #?# ##############?? ???????????? | | ????? ??# ###/#######??##?????????????????? | | #?? ????# ## ##????????????????????? | | ?????#### ## """ #?#??#????????????????? | | ??#????# # """ #?#???????????????????? | | ??#????# # """ #??#??????????????????? | | ???????# + """ ###??? ???????????????? | | ??????## # #?????????????????????? | | ???????## ## #??#??????????????????? | | ?????? ?# ## #?????????????????????? | | ??????? / ## #?????????????????????? | | ?????? # #######+###?????????????????????? | | ?????" # #?? ??? ?????????????????????? | | ????"" ?# #???????" "?????????????????????? | | ???? ?# #???????" ""????????????????????? | | ???###??# ???????????"????????????????????? | | ????????# ????????????????????????????????? | | ????????# ????????? ??????????????????????? | +----------------------------------------------------+ Best States ------------- Heat Dissipation 28 Energy Generation 14 Energy Capacity 250 Matter Stores 300 Matter Capacity 300 Sight Range 16 Terrain Scan Range 14 Terrain Scan Density 10 Core Shielding 20 Evasion (%) 55 Recoil Reduction 3 Item Schematics ----------------- None Robot Schematics ------------------ None Fabricated ------------ Nothing Alien Tech Used ----------------- None Achievements -------------- None Challenges ------------ None Game ------ Seed HardcellLargeRay Manual? 0 Play Time 00:20:21 Cumulative 4.2 hours Start 2025.03.04 @ 16:19:37 End 2025.03.04 @ 17:37:25 Sessions 1 Manual Loads 0 Difficulty Rogue Special Mode None Game No. 11 Rogue 4 Adventurer 7 Explorer 0 Win Type - Total 0 Types 0/0/0/0/0/0/0/0/0 Lore% 1 Gallery% 7 Achievement% 7 Wizard Run 0 Options --------- Layout 1 ASCII 0 Keyboard 1 Movement Vi Keybinds 0 Fullscreen 1 Font 24/Smallcaps Map View 76x35 Zoom Use 0% Tactical HUD 1 Map Filters NONE Filters NONE Steam 1 RUN: 0a9c0619-1689-4eff-97b8-38ea4ce34212